bitfinex-derivatives/quotes_ETHF0:USTF0_20260120
["timestamp","ask_amount","ask_price","bid_price","bid_amount"]
[1768952015750,0.98349802,2948.3,2947.1,0.00415351]
[1768952015948,0.98349802,2948.2,2947.2,2.136]
[1768952016143,2.07620268,2948.4,2947.2,2.136]
[1768952016344,0.98278477,2948.3,2947.2,2.136]
[1768952016544,0.98278477,2948.2,2947.2,2.136]
[1768952016743,2.07620268,2948.4,2947.2,2.136]
[1768952016943,0.98280108,2948.3,2947.2,2.136]
[1768952017146,0.98280108,2948.2,2947.2,2.136]
[1768952017452,0.98296948,2948.1,2947.2,2.136]
[1768952017649,2.24598268,2948.4,2947.2,2.136]
[1768952017850,1.35191842,2948.3,2947.2,2.136]
[1768952018050,0.98300601,2948.2,2947.1,0.00415351]
[1768952018252,0.98300601,2948.1,2947.2,2.136]
[1768952018445,2.24598268,2948.4,2947.2,2.136]
[1768952018645,1.35176171,2948.3,2947.2,2.136]
[1768952018848,0.98303327,2948.2,2947.2,2.136]
[1768952019051,0.98303327,2948.1,2947.2,2.136]
[1768952019243,2.07620268,2948.4,2947.1,0.00415351]
[1768952019542,2.07620268,2947.9,2946.5,3.61246424]
[1768952019751,2.07620268,2947.9,2946.5,5.74846424]
[1768952019752,0.98287016,2947.8,2946.5,5.74846424]
[1768952019951,0.98287016,2947.7,2946.5,5.74846424]
[1768952020153,6.449,2948.4,2946.6,3.61246424]
[1768952020349,1.35117605,2948.3,2946.6,3.61507503]
[1768952020549,1.35117605,2948.2,2946.6,3.61507503]
[1768952020854,0.98260772,2948.1,2946.6,3.61507503]
[1768952021053,0.98260772,2948.0,2946.6,3.61507503]
[1768952021255,0.98260772,2947.9,2946.6,3.61507503]
[1768952021556,6.61877,2948.4,2946.6,3.61507503]
[1768952021751,2.07620268,2948.1,2946.6,0.00261079]
[1768952021951,2.24602268,2947.6,2946.2,3.61246424]
[1768952022257,0.16984,2947.3,2946.1,2.135]
[1768952022557,0.98224519,2947.2,2946.1,2.135]
[1768952022748,0.16984,2947.3,2946.1,2.135]
[1768952022950,0.98095668,2947.2,2946.1,2.13900495]
[1768952023258,0.98095668,2947.2,2946.1,0.00400495]
[1768952023549,0.98095668,2947.2,2946.1,2.13900495]
[1768952024458,0.16984,2947.3,2946.1,5.88564441]
[1768952024648,0.1698,2947.9,2946.2,3.74663946]
[1768952024850,0.97963805,2947.8,2946.2,3.74663946]
[1768952025048,0.1698,2947.9,2946.2,3.74663946]
[1768952025258,0.97965456,2947.8,2946.2,3.74663946]
[1768952025451,0.1698,2947.9,2946.2,3.74663946]
[1768952025646,0.97954958,2947.8,2946.2,3.74663946]
[1768952025848,0.1698,2947.9,2946.2,3.74663946]
[1768952026051,0.97956246,2947.8,2946.2,3.74663946]
[1768952026257,0.1698,2947.9,2946.2,3.74663946]
[1768952026460,0.97942594,2947.8,2946.2,3.74663946]
[1768952026660,0.1698,2947.9,2946.2,3.74663946]
[1768952026861,0.97942498,2947.8,2946.2,3.74663946]
[1768952027065,0.16981,2947.8,2946.2,3.74663946]
[1768952031460,0.16981,2947.8,2946.4,3.64071395]
[1768952031662,0.16982,2947.7,2946.4,3.64071395]
[1768952031861,0.16982,2947.7,2946.5,2.134]
[1768952032263,0.16982,2947.7,2946.6,3.64071395]
[1768952033465,0.16978,2948.3,2946.6,3.64071395]
[1768952033661,0.979969,2948.2,2946.6,3.64071395]
[1768952033863,0.16978,2948.3,2946.6,3.64071395]
[1768952034064,0.97996855,2948.2,2946.6,3.64071395]
[1768952034261,6.449,2948.4,2946.6,3.64071395]
[1768952034456,0.97988892,2948.3,2946.7,9.17171395]
[1768952034655,0.97988892,2948.2,2946.7,9.17171395]
[1768952034861,6.449,2948.4,2946.7,3.64071395]
[1768952035062,0.97989533,2948.3,2946.9,3.64071395]
[1768952035365,0.97989533,2948.2,2946.9,3.64071395]
[1768952035567,0.16979,2948.1,2946.5,3.64071395]
[1768952035860,0.16981,2947.8,2946.5,3.64071395]
[1768952036065,0.16981,2947.8,2946.6,2.134]
[1768952038962,3.67598025,2948.1,2946.6,2.134]
[1768952039167,0.16982,2947.6,2946.5,3.64071395]
[1768952039467,0.16982,2947.6,2946.4,2.134]
[1768952040576,0.16982,2947.6,2946.4,2.133]
[1768952040774,0.16983,2947.5,2946.1,3.6447189]
[1768952041074,0.16984,2947.4,2946.2,2.133]
[1768952041574,0.16984,2947.4,2946.2,5.77371395]
[1768952043284,0.16984,2947.3,2946.3,2.133]
[1768952043982,0.16984,2947.3,2946.2,3.64071395]
[1768952044176,0.1698,2947.9,2946.3,3.64071395]
[1768952044377,0.98037312,2947.8,2946.3,3.64071395]
[1768952044680,0.1698,2947.9,2946.3,3.64071395]
[1768952044983,0.98081686,2947.8,2946.3,3.64071395]
[1768952045176,0.1698,2947.9,2946.3,3.64071395]
[1768952045371,0.98091457,2947.8,2946.3,3.64071395]
[1768952045683,0.1698,2947.9,2946.3,3.64071395]
[1768952045878,0.98133236,2947.8,2946.3,3.64071395]
[1768952046078,0.1698,2947.9,2946.3,3.64071395]
[1768952046278,0.98133431,2947.8,2946.3,3.64071395]
[1768952046477,0.1698,2947.9,2946.3,3.64071395]
[1768952046676,1.15130113,2947.8,2946.3,3.64071395]
[1768952046877,0.16982,2947.7,2946.4,5.53]
[1768952047076,0.16982,2947.7,2946.5,3.64071395]
[1768952047775,0.16982,2947.7,2946.6,2.132]
[1768952049376,0.16982,2947.7,2946.7,3.64071395]
[1768952049577,0.16978,2948.3,2946.7,3.64071395]
[1768952049777,1.3472734,2948.2,2946.7,3.64071395]
[1768952049985,0.98232059,2948.1,2946.7,3.64071395]
[1768952050284,0.16978,2948.3,2946.7,3.64071395]
[1768952050486,0.98232006,2948.2,2946.7,3.64071395]
[1768952050686,0.98232006,2948.1,2946.7,3.64071395]
[1768952050887,0.16979,2948.2,2946.7,3.64071395]
[1768952051184,0.98231036,2948.1,2946.7,3.64071395]
[1768952051380,0.16979,2948.2,2946.7,3.64071395]
[1768952051680,1.15211084,2948.1,2946.8,2.132]
[1768952051984,0.98232084,2948.0,2946.8,2.132]
[1768952052180,0.16981,2947.8,2946.2,3.64071395]
[1768952052381,3.67598025,2948.2,2946.2,3.64071395]
[1768952052382,0.16983,2947.5,2946.3,2.132]
[1768952052780,0.16983,2947.5,2946.2,3.64071395]
[1768952052982,0.98214251,2947.4,2946.2,5.77271395]
[1768952053190,0.16983,2947.5,2946.2,5.77271395]
[1768952053482,0.98211045,2947.4,2946.2,5.77271395]
[1768952053683,0.16983,2947.5,2946.2,5.77271395]
[1768952053879,0.9824235,2947.4,2946.2,5.77271395]
[1768952054081,0.16983,2947.5,2946.2,5.77271395]
[1768952054385,0.9824618,2947.4,2946.2,3.64071395]
[1768952054590,0.9824618,2947.3,2946.2,5.77271395]
[1768952054784,0.16983,2947.5,2946.2,5.77271395]
[1768952054979,0.98288584,2947.4,2946.2,5.77271395]
[1768952055178,0.98288584,2947.3,2946.2,5.77271395]
[1768952055382,0.16983,2947.5,2946.2,5.77271395]
[1768952055584,0.98284357,2947.4,2946.2,5.77271395]
[1768952055780,0.98284357,2947.3,2946.2,5.77271395]
[1768952055985,0.16983,2947.5,2946.2,5.77271395]
[1768952056285,0.98285176,2947.4,2946.2,5.77271395]
[1768952056485,0.98285176,2947.3,2946.3,3.4402088]
[1768952056685,0.16983,2947.5,2946.3,3.4402088]
[1768952056985,0.98277582,2947.4,2946.3,3.4402088]
[1768952057185,0.98277582,2947.3,2946.3,3.4402088]
[1768952057387,0.16983,2947.5,2946.3,3.4402088]
[1768952057587,0.98269228,2947.4,2946.3,3.4402088]
[1768952057783,0.16983,2947.5,2946.3,3.4402088]
[1768952061288,0.16979,2948.1,2946.3,3.4402088]
[1768952061490,0.98291351,2948.0,2946.3,3.4402088]
[1768952061779,0.98291351,2947.9,2946.3,3.4402088]
[1768952065790,0.98291351,2947.9,2946.5,3.4402088]
[1768952066993,0.98291351,2947.9,2946.7,3.4402088]
[1768952067795,0.98291351,2947.9,2946.8,2.13]
[1768952068386,0.98291351,2947.9,2946.7,3.4402088]
[1768952068690,0.98291351,2947.9,2946.8,2.13]
[1768952069784,0.98291351,2947.9,2946.9,3.4402088]
[1768952071884,0.98291351,2947.9,2947.0,2.13]
[1768952072988,0.98291351,2947.9,2946.9,3.4402088]
[1768952073190,0.98291351,2947.9,2947.0,2.129]
[1768952074294,0.98291351,2947.9,2947.1,2.129]
[1768952074491,0.98291351,2947.9,2946.3,3.4402088]
[1768952074696,0.98291351,2947.9,2946.5,3.4402088]
[1768952075189,0.98291351,2947.9,2946.7,3.4402088]
[1768952076190,0.1698,2948.0,2946.7,3.4402088]
[1768952076396,0.16978,2948.3,2946.7,3.4402088]
[1768952076596,0.98384015,2948.2,2946.7,3.4402088]
[1768952076798,0.98384015,2948.1,2946.7,3.4402088]
[1768952076996,0.16978,2948.3,2946.7,3.4402088]
[1768952077196,0.98384145,2948.2,2946.7,3.4402088]
[1768952077391,0.98384145,2948.1,2946.7,3.4402088]
[1768952077699,0.16978,2948.3,2946.7,3.4402088]
[1768952077997,0.98379198,2948.2,2946.7,3.4402088]
[1768952078195,0.98379198,2948.1,2946.7,3.4402088]
[1768952078395,0.16978,2948.3,2946.7,3.4402088]
[1768952078598,0.98372717,2948.2,2946.7,3.4402088]
[1768952078800,0.16978,2948.3,2946.7,3.4402088]
[1768952079001,0.16978,2948.3,2946.8,3.4402088]
[1768952079204,1.38297468,2948.9,2946.8,3.6100788]
[1768952079205,0.16975,2948.9,2946.8,3.6100788]
[1768952079495,0.98370936,2948.8,2946.8,3.6100788]
[1768952079803,1.38297468,2948.8,2946.8,3.6100788]
[1768952080003,0.16975,2948.9,2947.2,3.4402088]
[1768952081901,0.16975,2948.9,2947.4,3.4402088]
[1768952082895,0.16975,2948.9,2947.6,3.4402088]
[1768952083301,0.00379623,2949.0,2947.6,3.4402088]
[1768952083697,0.00379623,2949.0,2947.6,3.6100288]
[1768952084003,0.00379623,2949.0,2947.5,5.525]
[1768952084004,0.16971,2949.6,2947.8,3.4402088]
[1768952084395,0.16971,2949.6,2947.8,3.6100088]
[1768952085000,0.17284262,2949.6,2947.8,3.6100088]
[1768952085401,0.17284262,2949.6,2947.8,3.88445603]
[1768952085796,0.17284262,2949.6,2947.8,3.6100088]
[1768952087398,3.64504219,2949.6,2947.8,3.4402088]
[1768952087601,0.16973,2949.3,2948.0,3.4471087]
[1768952087804,0.16973,2949.3,2948.2,3.4471087]
[1768952088106,0.16973,2949.3,2948.3,5.522]
[1768952089310,0.16973,2949.3,2948.2,0.0026121]
[1768952089608,0.16973,2949.3,2948.3,2.127]
[1768952091198,0.00313262,2949.6,2948.2,3.4497208]
[1768952091401,0.00313262,2949.6,2948.4,3.4471087]
[1768952093916,0.19263676,2950.2,2948.4,3.4471087]
[1768952094408,0.19263676,2950.2,2948.6,3.4471087]
[1768952094799,0.19669539,2950.2,2948.8,3.4471087]
[1768952095205,0.36636539,2950.2,2948.8,3.4471087]
[1768952095601,0.36636539,2950.2,2948.9,2.126]
[1768952095807,0.36636539,2950.2,2948.9,5.521]
[1768952096107,0.36636539,2950.2,2948.8,3.4471087]
[1768952096311,0.36636539,2950.2,2948.9,5.521]
[1768952097116,0.36636539,2950.2,2949.0,3.4471087]
[1768952099404,0.36636539,2950.2,2948.2,0.0026121]
[1768952099405,0.16968,2950.1,2949.1,2.126]
[1768952100106,0.16968,2950.1,2949.2,2.125]
[1768952100312,2.24243014,2949.9,2948.8,2.125]
[1768952101011,1.38210056,2949.4,2948.4,3.4471087]
[1768952101311,3.64190957,2950.1,2948.5,2.125]
[1768952101312,1.38210056,2949.0,2948.5,2.125]
[1768952101515,1.38210056,2949.4,2948.5,5.5721087]
[1768952101814,1.57879595,2950.2,2948.8,3.4471087]
[1768952101815,1.38210056,2950.0,2948.8,3.4471087]
[1768952102715,1.38210056,2949.8,2948.8,3.4471087]
[1768952103014,0.36636539,2950.2,2948.8,3.4471087]
[1768952104916,0.16964,2950.8,2948.8,3.4471087]
[1768952105921,0.16964,2950.8,2948.8,3.6168587]
[1768952105922,0.17330882,2950.8,2948.8,3.6168587]
[1768952106416,0.17330882,2950.8,2949.0,3.4471087]
[1768952106619,0.00366882,2950.8,2949.0,3.4471087]
[1768952106921,0.1696,2951.4,2949.3,3.4471087]
[1768952107228,0.1696,2951.4,2949.5,3.4471087]
[1768952107917,0.17279836,2951.4,2949.5,3.4471087]
[1768952108521,0.17279836,2951.4,2949.7,3.4471087]
[1768952109616,0.00319836,2951.4,2949.8,3.4471087]
[1768952110219,0.00319836,2951.4,2949.8,3.6167987]
[1768952110414,0.16957,2952.0,2949.8,3.6167987]
[1768952111420,0.17385306,2952.0,2949.8,3.6167987]
[1768952111616,0.16957,2951.9,2950.0,3.4471087]
[1768952112117,0.16957,2951.9,2950.2,3.4471087]
[1768952112830,0.16957,2951.9,2950.4,3.4471087]
[1768952113025,0.16957,2951.9,2950.4,3.45122568]
[1768952113524,0.16957,2951.9,2950.6,3.4471087]
[1768952115428,0.00428306,2952.0,2950.6,3.4471087]
[1768952116518,0.16957,2951.9,2950.7,3.393]
[1768952116728,0.16957,2951.9,2950.7,5.516]
[1768952117423,0.16957,2951.9,2950.7,8.90009702]
[1768952117621,0.16957,2951.9,2950.8,3.38409702]
[1768952117821,0.00428306,2952.0,2950.8,3.38409702]
[1768952118324,2.07250873,2951.9,2950.4,3.388214]
[1768952118523,3.64919792,2951.7,2950.4,0.00411698]
[1768952118725,3.64919792,2951.7,2950.4,2.12711698]
[1768952119430,0.16959,2951.6,2950.4,2.12711698]
[1768952119928,0.16959,2951.6,2950.5,2.122]
[1768952121223,0.16959,2951.6,2950.6,2.122]
[1768952122019,0.00428306,2952.0,2950.6,2.122]
[1768952122421,0.00428306,2952.0,2950.6,5.50609702]
[1768952123123,0.16958,2951.8,2950.6,2.122]
[1768952124032,0.16959,2951.7,2950.6,2.122]
[1768952124234,0.16959,2951.7,2950.4,0.00411698]
[1768952124428,0.16959,2951.7,2950.4,2.12611698]
[1768952125131,0.16959,2951.7,2950.4,0.00411698]
[1768952125333,0.16959,2951.7,2950.5,2.122]
[1768952125733,0.16959,2951.6,2950.4,0.00411698]
[1768952125925,0.16959,2951.6,2950.5,2.121]
[1768952127034,0.16961,2951.3,2950.4,0.00411698]
[1768952129127,0.16964,2950.8,2949.4,3.38409702]
[1768952129331,0.9786297,2950.7,2949.3,5.513]
[1768952129535,0.9786297,2950.6,2949.3,8.89709702]
[1768952129727,3.47961792,2951.1,2949.4,3.38409702]
[1768952129928,0.978695,2951.0,2949.4,3.38409702]
[1768952130134,0.16961,2951.2,2949.4,3.38409702]
[1768952130635,0.16958,2951.8,2949.6,3.38409702]
[1768952130838,0.97856251,2951.7,2949.6,3.38409702]
[1768952131033,0.97856251,2951.6,2949.6,3.38409702]
[1768952131332,0.16958,2951.8,2949.6,3.38409702]
[1768952131630,1.14897512,2951.7,2949.6,3.38409702]
[1768952131834,0.97939512,2951.6,2949.8,3.38409702]
[1768952133130,0.97939512,2951.6,2950.0,3.38409702]
[1768952133629,1.14898512,2951.6,2950.0,3.38409702]
[1768952133938,0.97939512,2951.5,2950.0,3.38409702]
[1768952134135,0.97939512,2951.5,2950.2,3.38409702]
[1768952134336,0.16959,2951.6,2950.2,3.38409702]
[1768952134537,0.98166756,2951.5,2950.2,3.38409702]
[1768952134730,0.16959,2951.6,2950.2,3.38409702]
[1768952134931,0.98165882,2951.5,2950.2,3.38409702]
[1768952135130,0.16959,2951.6,2950.2,3.38409702]
[1768952135326,0.98171035,2951.5,2950.2,3.38409702]
[1768952135534,0.16959,2951.6,2950.2,3.38409702]
[1768952135840,0.98198272,2951.5,2950.2,3.38409702]
[1768952136030,0.16959,2951.6,2950.2,3.38409702]
[1768952136231,0.98198254,2951.5,2950.2,3.38409702]
[1768952136440,0.16959,2951.6,2950.2,3.38409702]
[1768952136637,0.9822331,2951.5,2950.2,3.38409702]
[1768952136935,0.16959,2951.6,2950.4,3.38409702]
[1768952137131,0.98223738,2951.5,2950.4,3.38409702]
[1768952137339,0.16959,2951.6,2950.5,2.12]
[1768952137541,0.98228422,2951.5,2950.4,3.38409702]
[1768952137839,0.16959,2951.6,2950.5,2.12]
[1768952138043,0.98226505,2951.5,2950.5,2.12]
[1768952138337,0.16959,2951.6,2950.5,2.12]
[1768952138540,0.98227253,2951.5,2950.5,2.12]
[1768952138739,0.16959,2951.6,2950.5,2.12]
[1768952138940,0.98174221,2951.5,2950.5,2.12]
[1768952139140,0.16959,2951.6,2950.5,2.12]
[1768952139336,0.98174238,2951.5,2950.5,2.12]
[1768952139538,0.16959,2951.6,2950.5,2.12]
[1768952140038,0.98173251,2951.5,2950.5,2.12]
[1768952140237,0.16959,2951.6,2950.5,2.12]
[1768952140636,0.981762,2951.5,2950.5,2.12]
[1768952140837,0.16959,2951.6,2950.5,2.12]
[1768952141037,0.98176092,2951.5,2950.5,2.12]
[1768952141239,0.16959,2951.6,2950.5,2.12]
[1768952141834,0.16959,2951.6,2950.6,2.119]
[1768952142242,0.00428306,2952.0,2950.6,2.119]
[1768952142444,1.33371566,2951.9,2950.6,5.50309702]
[1768952142743,0.98177824,2951.8,2950.6,5.50309702]
[1768952142940,0.98177824,2951.7,2950.6,5.50309702]
[1768952143136,0.98177824,2951.6,2950.6,5.50309702]
[1768952143337,0.00428306,2952.0,2950.6,5.50309702]
[1768952143542,1.333731,2951.9,2950.6,5.50309702]
[1768952143744,0.98179034,2951.8,2950.6,5.50309702]
[1768952143940,0.98179034,2951.7,2950.6,5.50309702]
[1768952144142,0.98179034,2951.6,2950.6,5.50309702]
[1768952144442,0.17385306,2952.0,2950.6,5.50309702]
[1768952144737,1.33376614,2951.9,2950.6,5.50309702]
[1768952144937,0.98181564,2951.8,2950.6,5.50309702]
[1768952145139,0.98181564,2951.7,2950.6,5.50309702]
[1768952145337,0.98181564,2951.6,2950.6,5.50309702]
[1768952145541,0.17385306,2952.0,2950.6,5.50309702]
[1768952145748,1.33382331,2951.9,2950.6,5.50309702]
[1768952146042,0.98186323,2951.8,2950.6,5.50309702]
[1768952146240,0.98186323,2951.7,2950.6,5.50309702]
[1768952146542,0.98186323,2951.6,2950.6,5.50309702]
[1768952146743,0.17385306,2952.0,2950.6,5.50309702]
[1768952146939,1.15162155,2951.9,2950.6,5.50309702]
[1768952147141,0.98204155,2951.8,2950.6,5.50309702]
[1768952147343,0.98204155,2951.7,2950.6,5.50309702]
[1768952147536,0.16958,2951.8,2950.6,5.50309702]
[1768952147733,0.98204759,2951.7,2950.6,5.50309702]
[1768952147945,0.16958,2951.8,2950.6,5.50309702]
[1768952148146,0.98204758,2951.7,2950.6,5.50309702]
[1768952148347,0.16958,2951.8,2950.6,5.50309702]
[1768952148644,0.9821943,2951.7,2950.6,5.50309702]
[1768952148845,0.16958,2951.8,2950.6,5.50309702]
[1768952149047,0.98219407,2951.7,2950.6,5.50309702]
[1768952149240,0.16958,2951.8,2950.6,5.50309702]
[1768952149441,0.98218502,2951.7,2950.6,5.50309702]
[1768952149640,0.16958,2951.8,2950.7,3.684659]
[1768952154947,0.16958,2951.8,2951.0,3.684659]
[1768952155556,0.16958,2951.8,2951.0,2.117]
[1768952156950,0.16958,2951.8,2950.6,3.684659]
[1768952157151,0.16958,2951.8,2950.7,2.117]
[1768952158557,0.16959,2951.6,2950.3,2.117]
[1768952158951,0.16959,2951.6,2950.3,5.801659]
[1768952159155,0.16959,2951.6,2950.4,3.684659]
[1768952160851,1.37987272,2951.6,2950.4,3.684659]
[1768952161051,0.16962,2951.1,2949.7,3.684659]
[1768952161257,1.37987272,2950.8,2949.7,3.684659]
[1768952161456,1.37987272,2950.8,2949.7,5.801659]
[1768952163358,0.16963,2950.9,2949.7,5.801659]
[1768952166263,0.16963,2950.9,2949.8,3.684659]
[1768952166965,0.16963,2950.9,2949.5,3.684659]
[1768952167159,0.16963,2950.9,2949.6,5.800659]
[1768952167360,0.16963,2950.9,2949.7,3.684659]
[1768952167760,0.16964,2950.8,2949.7,3.684659]
[1768952168064,0.16964,2950.7,2949.7,2.116]
[1768952168259,0.16964,2950.7,2949.4,3.68898472]
[1768952168463,0.16966,2950.5,2949.4,0.00432572]
[1768952168858,3.38860508,2950.7,2949.4,0.00432572]
[1768952169067,0.97839182,2950.6,2949.4,0.00432572]
[1768952169267,3.38860508,2950.7,2949.4,0.00432572]
[1768952169473,0.97790231,2950.6,2949.4,0.00432572]
[1768952169663,3.38860508,2950.7,2949.4,0.00432572]
[1768952169863,0.9779029,2950.6,2949.4,0.00432572]
[1768952170063,3.38860508,2951.2,2949.4,3.68898472]
[1768952170266,0.16964,2950.7,2949.4,3.68898472]
[1768952170467,0.97790139,2950.6,2949.4,3.68898472]
[1768952170765,0.16964,2950.7,2949.4,3.68898472]
[1768952171960,0.16965,2950.5,2949.4,3.68898472]
[1768952172164,0.16966,2950.4,2949.4,0.00432572]
[1768952173668,0.16967,2950.3,2949.4,0.00432572]
[1768952174167,3.38860508,2950.6,2949.4,0.00432572]
[1768952174371,0.16968,2950.1,2949.4,0.00432572]
[1768952180369,0.16968,2950.1,2948.2,0.43627304]
[1768952180370,3.7112206,2950.5,2948.3,3.65501871]
[1768952180575,3.7112206,2950.3,2948.3,5.77001871]
[1768952180775,3.7112206,2950.1,2948.3,5.77001871]
[1768952180977,0.1697,2949.8,2948.4,3.65501871]
[1768952181578,0.17388764,2949.8,2948.4,3.65827792]
[1768952185982,0.1697,2949.7,2948.4,3.65827792]
[1768952187177,0.00418764,2949.8,2948.4,3.65827792]
[1768952189482,0.00418764,2949.8,2948.6,3.65501871]
[1768952190579,0.00418764,2949.8,2948.7,2.114]
[1768952190992,0.00418764,2949.8,2948.7,5.76901871]
[1768952191285,0.00418764,2949.8,2948.8,3.65501871]
[1768952191584,0.00418764,2949.8,2948.8,5.76901871]
[1768952192186,0.00418764,2949.8,2948.9,3.65501871]
[1768952193587,0.00418764,2949.8,2948.5,3.65501871]
[1768952193785,0.16971,2949.6,2948.4,2.11725921]
[1768952194688,0.16971,2949.5,2948.4,0.00325921]
[1768952195283,0.16972,2949.4,2948.4,0.00325921]
[1768952195486,0.97961089,2949.3,2947.7,3.65501871]
[1768952195791,0.16974,2949.0,2947.7,3.65501871]
[1768952196586,0.16974,2949.0,2947.7,3.65868938]
[1768952203489,0.16974,2949.0,2947.8,2.113]
[1768952203690,0.16974,2949.0,2947.9,3.65501871]
[1768952203994,0.16971,2949.6,2947.9,3.65501871]
[1768952204693,0.00418764,2949.8,2947.8,2.28281]
[1768952204694,0.00418764,2949.8,2948.1,3.65559903]
[1768952204894,0.00418764,2949.8,2948.3,3.65559903]
[1768952207798,0.00418764,2949.8,2948.4,8.911263]
[1768952208100,0.00418764,2949.8,2948.5,3.405263]
[1768952213401,0.00418764,2949.8,2948.6,2.112]
[1768952213704,0.00418764,2949.8,2948.5,5.517263]
[1768952215595,0.00418764,2949.8,2948.6,3.405263]
[1768952218904,1.38196648,2949.6,2948.6,3.405263]
[1768952220401,1.38196648,2948.8,2948.0,3.405263]
[1768952221798,1.38196648,2949.0,2948.0,3.405263]
[1768952224397,0.16973,2949.2,2947.7,0.00367067]
[1768952224398,1.38196648,2948.5,2947.7,0.00367067]
[1768952224802,1.38196648,2948.5,2947.7,2.11467067]
[1768952224999,1.38196648,2948.7,2947.7,5.51993367]
[1768952225205,0.16974,2948.9,2947.8,3.405263]
[1768952226202,1.38196648,2949.3,2948.2,3.405263]
[1768952227202,1.38196648,2949.3,2948.3,2.111]
[1768952229013,1.38196648,2949.3,2948.3,5.516263]
[1768952229605,0.16972,2949.4,2948.3,5.516263]
[1768952229811,0.16972,2949.4,2948.4,3.405263]
[1768952235817,0.16972,2949.4,2948.5,2.111]
[1768952236918,0.16972,2949.4,2948.5,5.50508796]
[1768952243019,0.16972,2949.4,2948.5,3.39408796]
[1768952243225,0.16972,2949.4,2948.6,2.11]
[1768952245827,0.16972,2949.4,2948.7,3.39408796]
[1768952247126,0.00418764,2949.8,2948.7,3.39408796]
[1768952247326,0.99108756,2949.7,2948.7,3.39408796]
[1768952247522,0.00418764,2949.8,2948.7,3.39408796]
[1768952247718,0.99110917,2949.7,2948.7,3.39408796]
[1768952247919,0.00418764,2949.8,2948.7,3.39408796]
[1768952248120,0.99110897,2949.7,2948.7,3.39408796]
[1768952248319,0.00418764,2949.8,2948.7,3.39408796]
[1768952248515,0.9911968,2949.7,2948.7,3.39408796]
[1768952248726,0.00418764,2949.8,2948.7,3.39408796]
[1768952248928,0.99115186,2949.7,2948.7,3.39408796]
[1768952249126,0.00418764,2949.8,2948.7,3.39408796]
[1768952249427,0.99115163,2949.7,2948.7,3.39408796]
[1768952249620,0.00418764,2949.8,2948.7,3.39408796]
[1768952249819,0.99119772,2949.7,2948.7,3.39408796]
[1768952250021,0.00418764,2949.8,2948.7,3.39408796]
[1768952250331,0.99119768,2949.7,2948.7,3.39408796]
[1768952250530,0.00418764,2949.8,2948.7,3.39408796]
[1768952250729,0.9911587,2949.7,2948.7,3.39408796]
[1768952250924,0.00418764,2949.8,2948.7,3.39408796]
[1768952251124,0.99115868,2949.7,2948.7,3.39408796]
[1768952251327,0.00418764,2949.8,2948.7,3.39408796]
[1768952251630,0.99114231,2949.7,2948.7,3.39408796]
[1768952251825,0.00418764,2949.8,2948.7,3.39408796]
[1768952252031,2.37310879,2949.7,2948.7,3.39408796]
[1768952252332,1.38196648,2949.7,2948.8,2.109]
[1768952256326,0.99162694,2949.6,2948.8,2.109]
[1768952256532,1.38196648,2949.7,2948.8,2.108]
[1768952256732,0.99161827,2949.6,2948.8,2.108]
[1768952257030,1.38196648,2949.7,2948.8,2.108]
[1768952257227,0.99161827,2949.6,2948.8,2.108]
[1768952257434,1.38196648,2949.7,2948.7,3.39408796]
[1768952257730,0.9916931,2949.6,2948.8,2.108]
[1768952257929,1.38196648,2949.7,2948.8,2.108]
[1768952258131,0.9916931,2949.6,2948.8,2.108]
[1768952258431,1.38196648,2949.5,2948.3,4.77605444]
[1768952258633,1.38196648,2949.5,2948.4,5.50208796]
[1768952259027,1.38196648,2949.5,2948.4,3.39408796]
[1768952259224,1.38196648,2949.5,2948.5,2.108]
[1768952259425,1.38196648,2949.3,2948.4,3.39408796]
[1768952259628,1.38196648,2949.3,2948.5,2.108]
[1768952260632,1.38196648,2949.3,2948.4,3.39408796]
[1768952260833,1.38196648,2949.1,2948.0,3.39408796]
[1768952261034,1.38196648,2949.1,2948.3,2.108]
[1768952262734,1.38196648,2948.9,2948.0,5.50208796]
[1768952262931,1.38196648,2948.7,2948.0,5.50208796]
[1768952264436,1.38196648,2948.7,2948.0,2.108]
[1768952264835,1.38196648,2948.7,2947.8,2.109]
[1768952267430,1.55170648,2948.9,2947.9,3.38196355]
[1768952267630,0.16974,2948.9,2947.9,3.38196355]
[1768952272435,1.38196648,2949.1,2947.9,3.38196355]
[1768952272643,0.16971,2949.5,2948.3,1.38196648]
[1768952272841,0.16971,2949.5,2948.4,3.38196355]
[1768952273140,0.16971,2949.5,2948.5,5.49096355]
[1768952276937,0.16971,2949.5,2948.6,3.38196355]
[1768952278042,1.55167648,2949.5,2948.6,3.38196355]
[1768952280141,0.00418764,2949.8,2948.6,3.38196355]
[1768952280442,1.38196648,2949.7,2948.6,3.38196355]
[1768952280946,0.00418764,2949.8,2948.6,3.38196355]
[1768952281142,0.17387764,2949.8,2948.6,3.38196355]
[1768952281342,1.38190402,2949.7,2948.6,3.38196355]
[1768952283139,3.43791804,2949.6,2947.9,3.38196355]
[1768952283343,0.00418764,2949.8,2947.9,3.38196355]
[1768952283344,1.55163402,2949.2,2947.9,3.38196355]
[1768952284841,1.36243402,2949.2,2947.9,3.38196355]
[1768952286849,1.36243402,2949.2,2948.0,3.38196355]
[1768952289153,1.38190402,2948.8,2947.7,2.11067067]
[1768952289352,1.55165402,2948.8,2947.7,0.00367067]
[1768952289742,0.16976,2948.7,2947.7,0.00367067]
[1768952291845,1.55162402,2949.3,2947.7,3.38563422]
[1768952292052,1.33719857,2949.2,2947.7,3.38563422]
[1768952292351,0.98510277,2949.1,2947.7,3.38563422]
[1768952292552,0.98510277,2949.0,2947.7,3.38563422]
[1768952292755,0.16973,2949.2,2947.7,3.38563422]
[1768952292946,0.9849589,2949.1,2947.7,3.38563422]
[1768952293141,0.9849589,2949.0,2947.7,3.38563422]
[1768952293348,0.16973,2949.2,2947.7,3.38563422]
[1768952293549,0.98486815,2949.1,2947.7,3.38563422]
[1768952293860,0.17387764,2949.8,2948.3,3.38196355]
[1768952294049,0.98469873,2949.7,2948.4,3.38196355]
[1768952294245,0.17387764,2949.8,2948.4,3.38196355]
[1768952299066,0.00418764,2949.8,2948.7,3.74694483]
[1768952299259,0.16966,2950.4,2948.7,3.74694483]
[1768952299961,0.16966,2950.3,2948.7,3.74694483]
[1768952300163,1.38190402,2949.8,2948.3,3.74694483]
[1768952300364,0.1697,2949.7,2948.4,2.106]
[1768952300660,0.1697,2949.7,2948.3,5.85294483]